fUST/lending_fUST_20250719
["ID","MTS","AMOUNT","RATE_DAILY","PERIOD"]
[373233058,1752919844338,-460.0,0.00017394,2]
[373233060,1752919844347,-460.0,0.00017394,2]
[373233062,1752919844357,-460.0,0.00017394,2]
[373233064,1752919844367,-494.60709884,0.00017394,2]
[373233066,1752919844376,-460.0,0.00017394,2]
[373233068,1752919844386,-460.0,0.00017394,2]
[373233070,1752919844396,-1905.03,0.00017394,2]
[373233072,1752919844405,-460.0,0.00017394,2]
[373233074,1752919844415,-565.8,0.00017394,2]
[373233076,1752919844425,-460.0,0.00017394,2]
[373233078,1752919844435,-460.0,0.00017394,2]
[373233080,1752919844444,-460.0,0.00017394,2]
[373233082,1752919844454,-460.0,0.00017394,2]
[373233084,1752919844463,-473.79777371,0.00017394,2]
[373233086,1752919844472,-710.73,0.00017394,2]
[373233088,1752919844482,-460.0,0.00017394,2]
[373233090,1752919844492,-460.0,0.00017394,2]
[373233092,1752919844501,-460.0,0.00017394,2]
[373233094,1752919844511,-460.0,0.00017394,2]
[373233096,1752919844520,-460.0,0.00017394,2]
[373233098,1752919844530,-460.0,0.00017394,2]
[373233100,1752919844539,-460.0,0.00017394,2]
[373233102,1752919844548,-460.0,0.00017394,2]
[373233104,1752919844557,-977.09,0.00017394,2]
[373233106,1752919844567,-460.0,0.00017394,2]
[373233108,1752919844576,-460.0,0.00017394,2]
[373233110,1752919844586,-460.0,0.00017394,2]
[373233112,1752919844595,-747.71,0.00017394,2]
[373233114,1752919844605,-460.0,0.00017394,2]
[373233116,1752919844614,-460.0,0.00017394,2]
[373233118,1752919844624,-460.0,0.00017394,2]
[373233120,1752919844635,-460.0,0.00017394,2]
[373233122,1752919844644,-460.0,0.00017394,2]
[373233124,1752919844654,-460.0,0.00017394,2]
[373233126,1752919844664,-712.03,0.00017394,2]
[373233128,1752919844673,-460.0,0.00017394,2]
[373233130,1752919844683,-460.0,0.00017394,2]
[373233132,1752919844692,-460.0,0.00017394,2]
[373233134,1752919844701,-460.0,0.00017394,2]
[373233136,1752919844711,-460.0,0.00017394,2]
[373233138,1752919844721,-460.0,0.00017394,2]
[373233140,1752919844731,-460.0,0.00017394,2]
[373233142,1752919844740,-460.0,0.00017395,2]
[373233144,1752919844749,-460.0,0.00017395,2]
[373233146,1752919844759,-433.80641339,0.00017395,2]
[373233148,1752919844768,-460.0,0.00017395,2]
[373233149,1752919844778,-460.0,0.00017395,2]
[373233150,1752919844787,-460.0,0.00017395,2]
[373233151,1752919844797,-460.0,0.00017395,2]
[373233152,1752919844806,-192.01727641,0.00017395,2]
[373233153,1752919844816,-460.0,0.00017395,2]
[373233154,1752919844829,-460.0,0.00017395,2]
[373233155,1752919844839,-626.13,0.00017395,2]
[373233156,1752919844856,-460.0,0.00017396,2]
[373233157,1752919844870,-460.0,0.00017396,2]
[373233158,1752919844880,-460.0,0.00017396,2]
[373233160,1752919844889,-460.0,0.00017397,2]
[373233162,1752919844899,-517.51736164,0.00017397,2]
[373233164,1752919844909,-460.0,0.00017397,2]
[373233166,1752919844920,-460.0,0.00017397,2]
[373233169,1752919844930,-362.99024277,0.00017397,2]
[373233171,1752919844939,-460.0,0.00017397,2]
[373233172,1752919844949,-460.0,0.00017397,2]
[373233175,1752919844959,-460.0,0.00017397,2]
[373233177,1752919844968,-460.0,0.00017397,2]
[373233179,1752919844979,-287.85927966,0.00017397,2]
[373233181,1752919844988,-460.0,0.00017397,2]
[373233183,1752919844997,-460.0,0.00017397,2]
[373233185,1752919845007,-460.0,0.00017397,2]
[373233187,1752919845016,-460.0,0.00017397,2]
[373233189,1752919845025,-500.0,0.00017421,2]
[373233191,1752919845034,-1000.0,0.00017421,2]
[373233192,1752919845043,-502.30893642,0.00017421,2]
[373233194,1752919845053,-1009.52062491,0.00017421,2]
[373233197,1752919845063,-500.0,0.00017421,2]
[373233199,1752919845072,-1000.0,0.00017421,2]
[373233201,1752919845081,-2693.95,0.00017665,2]
[373233203,1752919845091,-449.78925658,0.00017665,2]
[373233205,1752919845100,-460.0,0.00017666,2]
[373233207,1752919845109,-460.0,0.00017666,2]
[373233209,1752919845118,-460.0,0.00017666,2]
[373233211,1752919845127,-460.0,0.00017666,2]
[373233213,1752919845136,-2693.95,0.00017666,2]
[373233215,1752919845146,-460.0,0.00017666,2]
[373233216,1752919845155,-1142.39,0.00017666,2]
[373233218,1752919845165,-3207.63,0.00017666,2]
[373233220,1752919845174,-518.67455594,0.00017666,2]
[373233223,1752919845184,-460.0,0.00017667,2]
[373233225,1752919845194,-460.0,0.00017667,2]
[373233227,1752919845203,-1990.11,0.00017667,2]
[373233229,1752919845213,-460.0,0.00017667,2]
[373233230,1752919845223,-486.9,0.00017667,2]
[373233232,1752919845234,-460.0,0.00017667,2]
[373233234,1752919845243,-460.0,0.00017667,2]
[373233236,1752919845253,-1873.77,0.00017667,2]
[373233238,1752919845262,-1599.51,0.00017667,2]
[373233240,1752919845271,-460.0,0.00017667,2]
[373233242,1752919845280,-919.87,0.00017667,2]
[373233244,1752919845290,-460.0,0.00017667,2]
[373233246,1752919845299,-460.0,0.00017667,2]
[373233248,1752919845308,-460.0,0.00017667,2]
[373233250,1752919845318,-460.0,0.00017667,2]
[373233252,1752919845327,-812.34,0.00017667,2]
[373233254,1752919845336,-460.0,0.00017667,2]
[373233256,1752919845346,-460.0,0.00017667,2]
[373233258,1752919845356,-460.0,0.00017667,2]
[373233260,1752919845365,-460.0,0.00017667,2]
[373233262,1752919845374,-460.0,0.00017667,2]
[373233264,1752919845384,-460.0,0.00017668,2]
[373233266,1752919845394,-460.0,0.00017668,2]
[373233268,1752919845404,-460.0,0.00017668,2]
[373233270,1752919845414,-460.0,0.00017668,2]
[373233272,1752919845423,-224.44983537,0.00017668,2]
[373233274,1752919845432,-460.0,0.00017668,2]
[373233276,1752919845442,-465.17679717,0.00017668,2]
[373233278,1752919845452,-460.0,0.00017668,2]
[373233280,1752919845461,-460.0,0.00017668,2]
[373233282,1752919845470,-460.0,0.00017668,2]
[373233284,1752919845481,-541.40124731,0.00017668,2]
[373233286,1752919845490,-460.0,0.00017668,2]
[373233288,1752919845499,-565.63938079,0.00017668,2]
[373233290,1752919845508,-460.0,0.00017668,2]
[373233292,1752919845518,-451.43737154,0.00017668,2]
[373233294,1752919845528,-460.0,0.00017668,2]
[373233296,1752919845537,-460.0,0.00017668,2]
[373233298,1752919845547,-460.0,0.00017668,2]
[373233300,1752919845557,-460.0,0.00017668,2]
[373233302,1752919845567,-460.0,0.00017668,2]
[373233304,1752919845576,-460.0,0.00017668,2]
[373233306,1752919845585,-460.0,0.00017668,2]
[373233308,1752919845595,-460.0,0.00017668,2]
[373233310,1752919845604,-460.0,0.00017668,2]
[373233312,1752919845613,-460.0,0.00017668,2]
[373233314,1752919845622,-460.0,0.00017668,2]
[373233316,1752919845632,-460.0,0.00017668,2]
[373233318,1752919845641,-460.0,0.00017668,2]
[373233320,1752919845651,-460.0,0.00017668,2]
[373233322,1752919845660,-1905.03,0.00017668,2]
[373233324,1752919845669,-460.0,0.00017668,2]
[373233326,1752919845679,-565.8,0.00017668,2]
[373233328,1752919845689,-460.0,0.00017668,2]
[373233330,1752919845699,-460.0,0.00017668,2]
[373233332,1752919845709,-460.0,0.00017668,2]
[373233334,1752919845718,-460.0,0.00017668,2]
[373233336,1752919845726,-710.73,0.00017668,2]
[373233338,1752919845736,-460.0,0.00017668,2]
[373233340,1752919845745,-460.0,0.00017668,2]
[373233342,1752919845755,-460.0,0.00017668,2]
[373233343,1752919845764,-460.0,0.00017668,2]
[373233345,1752919845773,-460.0,0.00017668,2]
[373233347,1752919845783,-240.06681902,0.00017668,2]
[373233349,1752919845792,-460.0,0.00017668,2]
[373233351,1752919845802,-460.0,0.00017668,2]
[373233354,1752919845811,-977.09,0.00017668,2]
[373233355,1752919845822,-747.71,0.00017668,2]
[373233357,1752919845833,-460.0,0.00017668,2]
[373233359,1752919845842,-460.0,0.00017668,2]
[373233361,1752919845852,-460.0,0.00017668,2]
[373233363,1752919845862,-460.0,0.00017668,2]
[373233366,1752919845873,-460.0,0.00017668,2]
[373233367,1752919845883,-460.0,0.00017668,2]
[373233369,1752919845892,-712.03,0.00017668,2]
[373233371,1752919845902,-460.0,0.00017668,2]
[373233373,1752919845912,-460.0,0.00017668,2]
[373233375,1752919845921,-258.82693295,0.00017668,2]
[373233377,1752919845931,-460.0,0.00017668,2]
[373233379,1752919845940,-460.0,0.00017668,2]
[373233381,1752919845950,-460.0,0.00017668,2]
[373233383,1752919845959,-460.0,0.00017668,2]
[373233385,1752919845968,-550.92734134,0.00017669,2]
[373233387,1752919845978,-460.0,0.00017669,2]
[373233389,1752919845988,-460.0,0.00017669,2]
[373233391,1752919845997,-471.55391111,0.00017669,2]
[373233393,1752919846007,-626.13,0.00017669,2]
[373233395,1752919846017,-254.39433477,0.00017671,2]
[373233397,1752919846026,-460.0,0.00017671,2]
[373233399,1752919846036,-460.0,0.00017671,2]
[373233402,1752919846046,-439.80618325,0.00017671,2]
[373233403,1752919846055,-1000.0,0.00017769,2]
[373233406,1752919846065,-4402.60444974,0.000179,2]
[373233407,1752919846074,-525.83049785,0.00017906,2]
[373233409,1752919846083,-476.34170116,0.00017906,2]
[373233411,1752919846092,-160.0,0.00017906,2]
[373233414,1752919846106,-160.0,0.00017906,2]
[373233416,1752919846115,-230.94145789,0.00017906,2]
[373233418,1752919846124,-12612.80205064,0.00017906,2]
[373233420,1752919846133,-839.454303,0.00017906,2]
[373233422,1752919846142,-215.67360783,0.00017906,2]
[373233424,1752919846153,-214.52603969,0.00017906,2]
[373233426,1752919846162,-1587.9,0.00017933,3]
[373233428,1752919846172,-793.96,0.00017933,3]
[373233430,1752919846182,-396.98,0.00017933,3]
[373233432,1752919846191,-2693.95,0.00017939,2]
[373233434,1752919846201,-512.10646577,0.0001794,2]
[373233436,1752919846211,-460.0,0.0001794,2]
[373233438,1752919846224,-460.0,0.0001794,2]
[373233439,1752919846234,-460.0,0.0001794,2]
[373233441,1752919846244,-2693.95,0.0001794,2]
[373233443,1752919846256,-460.0,0.0001794,2]
[373233445,1752919846268,-1142.39,0.0001794,2]
[373233446,1752919846277,-3207.63,0.0001794,2]
[373233448,1752919846287,-460.0,0.00017941,2]
[373233450,1752919846297,-460.0,0.00017941,2]
[373233452,1752919846307,-1990.11,0.00017941,2]
[373233454,1752919846316,-460.0,0.00017941,2]
[373233456,1752919846326,-486.9,0.00017941,2]
[373233458,1752919846335,-460.0,0.00017941,2]
[373233460,1752919846344,-460.0,0.00017941,2]
[373233462,1752919846353,-1873.77,0.00017941,2]
[373233464,1752919846362,-1599.51,0.00017941,2]
[373233466,1752919846372,-460.0,0.00017941,2]
[373233468,1752919846380,-919.87,0.00017941,2]
[373233470,1752919846390,-460.0,0.00017941,2]
[373233472,1752919846399,-460.0,0.00017941,2]
[373233474,1752919846408,-460.0,0.00017941,2]
[373233476,1752919846417,-812.34,0.00017941,2]
[373233477,1752919846427,-460.0,0.00017941,2]
[373233479,1752919846436,-460.0,0.00017941,2]
[373233492,1752919846445,-460.0,0.00017941,2]
[373233494,1752919846560,-460.0,0.00017942,2]
[373233496,1752919846570,-460.0,0.00017942,2]
[373233498,1752919846579,-329.1904351,0.00017942,2]
[373233500,1752919846589,-460.0,0.00017942,2]
[373233502,1752919846598,-460.0,0.00017942,2]
[373233504,1752919846607,-460.0,0.00017942,2]
[373233506,1752919846617,-460.0,0.00017942,2]
[373233508,1752919846627,-460.0,0.00017942,2]
[373233510,1752919846636,-460.0,0.00017942,2]
[373233512,1752919846646,-460.0,0.00017942,2]
[373233514,1752919846656,-460.0,0.00017942,2]
[373233516,1752919846666,-460.0,0.00017942,2]
[373233518,1752919846675,-344.111953,0.00017942,2]
[373233520,1752919846686,-460.0,0.00017942,2]
[373233522,1752919846696,-460.0,0.00017942,2]
[373233524,1752919846705,-460.0,0.00017942,2]
[373233526,1752919846715,-469.5843142,0.00017942,2]
[373233528,1752919846724,-460.0,0.00017942,2]
[373233530,1752919846734,-460.0,0.00017942,2]
[373233532,1752919846744,-557.52,0.00017942,2]
[373233534,1752919846753,-1905.03,0.00017942,2]
[373233536,1752919846762,-460.0,0.00017942,2]
[373233538,1752919846771,-565.8,0.00017942,2]
[373233540,1752919846780,-460.0,0.00017942,2]
[373233542,1752919846789,-460.0,0.00017942,2]
[373233544,1752919846799,-460.0,0.00017942,2]
[373233546,1752919846808,-710.73,0.00017942,2]
[373233548,1752919846818,-460.0,0.00017942,2]
[373233550,1752919846831,-460.0,0.00017942,2]
[373233552,1752919846840,-460.0,0.00017942,2]
[373233554,1752919846850,-468.58,0.00017942,2]
[373233555,1752919846859,-460.0,0.00017942,2]
[373233557,1752919846870,-460.0,0.00017942,2]
[373233559,1752919846881,-977.09,0.00017942,2]
[373233561,1752919846890,-747.71,0.00017942,2]
[373233563,1752919846900,-460.0,0.00017942,2]
[373233565,1752919846911,-460.0,0.00017942,2]
[373233567,1752919846920,-460.0,0.00017942,2]
[373233570,1752919846930,-460.0,0.00017942,2]
[373233572,1752919846939,-460.0,0.00017942,2]
[373233573,1752919846948,-460.0,0.00017942,2]
[373233575,1752919846958,-712.03,0.00017942,2]
[373233578,1752919846968,-460.0,0.00017942,2]
[373233580,1752919846978,-460.0,0.00017942,2]
[373233581,1752919846988,-460.0,0.00017942,2]
[373233584,1752919846998,-460.0,0.00017942,2]
[373233586,1752919847007,-460.0,0.00017942,2]
[373233588,1752919847017,-460.0,0.00017942,2]
[373233590,1752919847026,-460.0,0.00017943,2]
[373233591,1752919847036,-460.0,0.00017943,2]
[373233593,1752919847045,-626.13,0.00017943,2]
[373233595,1752919847054,-460.0,0.00017945,2]
[373233597,1752919847063,-460.0,0.00017945,2]
[373233599,1752919847073,-252.51829978,0.00017947,2]
[373233601,1752919847083,-1500.0,0.00017968,2]
[373233603,1752919847092,-507.57266618,0.00017968,2]
[373233604,1752919847101,-500.0,0.00018027,2]
[373233605,1752919847111,-420.0,0.00018104,2]
[373233606,1752919847120,-4402.60444947,0.00018176,2]
[373233607,1752919847129,-160.0,0.00018206,2]
[373233608,1752919847138,-2693.95,0.00018213,2]
[373233609,1752919847148,-460.0,0.00018214,2]
[373233610,1752919847156,-460.0,0.00018214,2]
[373233611,1752919847165,-2693.95,0.00018214,2]
[373233612,1752919847175,-460.0,0.00018214,2]
[373233613,1752919847188,-1142.39,0.00018214,2]
[373233614,1752919847197,-3207.63,0.00018214,2]
[373233615,1752919847206,-460.0,0.00018215,2]
[373233616,1752919847216,-1990.11,0.00018215,2]
[373233617,1752919847230,-486.9,0.00018215,2]
[373233618,1752919847239,-520.08,0.00018215,2]
[373233619,1752919847248,-460.0,0.00018215,2]
[373233620,1752919847258,-1873.77,0.00018215,2]
[373233621,1752919847267,-1599.51,0.00018215,2]
[373233622,1752919847276,-579.8,0.00018215,2]
[373233623,1752919847285,-919.87,0.00018215,2]
[373233624,1752919847294,-460.0,0.00018215,2]
[373233625,1752919847303,-460.0,0.00018215,2]
[373233626,1752919847313,-460.0,0.00018215,2]
[373233627,1752919847322,-812.34,0.00018215,2]
[373233628,1752919847332,-460.0,0.00018215,2]
[373233629,1752919847344,-460.0,0.00018215,2]
[373233630,1752919847354,-460.0,0.00018215,2]
[373233631,1752919847364,-460.0,0.00018216,2]
[373233632,1752919847374,-460.0,0.00018216,2]
[373233633,1752919847384,-460.0,0.00018216,2]
[373233634,1752919847394,-460.0,0.00018216,2]
[373233636,1752919847403,-460.0,0.00018216,2]
[373233637,1752919847413,-290.34696468,0.00018216,2]
[373233639,1752919847422,-460.0,0.00018216,2]
[373233641,1752919847432,-460.0,0.00018216,2]
[373233643,1752919847442,-460.0,0.00018216,2]
[373233645,1752919847451,-460.0,0.00018216,2]
[373233647,1752919847461,-460.0,0.00018216,2]
[373233649,1752919847470,-460.0,0.00018216,2]
[373233651,1752919847482,-263.02,0.00018216,2]
[373233653,1752919847492,-1905.03,0.00018216,2]
[373233655,1752919847501,-460.0,0.00018216,2]
[373233657,1752919847511,-565.8,0.00018216,2]
[373233659,1752919847521,-460.0,0.00018216,2]
[373233661,1752919847530,-460.0,0.00018216,2]
[373233663,1752919847540,-710.73,0.00018216,2]
[373233665,1752919847549,-460.0,0.00018216,2]
[373233667,1752919847559,-460.0,0.00018216,2]
[373233669,1752919847568,-460.0,0.00018216,2]
[373233671,1752919847577,-460.0,0.00018216,2]
[373233673,1752919847587,-977.09,0.00018216,2]
[373233675,1752919847597,-747.71,0.00018216,2]
[373233677,1752919847607,-460.0,0.00018216,2]
[373233679,1752919847617,-460.0,0.00018216,2]
[373233681,1752919847627,-318.66821209,0.00018216,2]
[373233683,1752919847637,-202.68,0.00018216,2]
[373233685,1752919847646,-460.0,0.00018216,2]
[373233687,1752919847655,-712.03,0.00018216,2]
[373233689,1752919847665,-460.0,0.00018216,2]
[373233691,1752919847675,-460.0,0.00018216,2]
[373233694,1752919847685,-460.0,0.00018216,2]
[373233695,1752919847694,-460.0,0.00018216,2]
[373233697,1752919847704,-460.0,0.00018217,2]
[373233699,1752919847713,-626.13,0.00018217,2]
[373233702,1752919847723,-460.0,0.00018219,2]
[373233704,1752919847741,-158.36082198,0.00018234,2]
[373233706,1752919847751,-500.0,0.00018292,2]
[373233708,1752919847760,-500.0,0.00018292,2]
[373233710,1752919847769,-500.0,0.00018292,2]
[373233712,1752919847779,-500.0,0.00018292,2]
[373233714,1752919847789,-500.0,0.00018292,2]
[373233716,1752919847798,-571.33485352,0.00018292,2]
[373233718,1752919847808,-500.0,0.00018292,2]
[373233720,1752919847817,-500.0,0.00018292,2]
[373233722,1752919847829,-500.0,0.00018292,2]
[373233724,1752919847838,-500.0,0.00018317,2]
[373233726,1752919847848,-4402.60444947,0.00018452,2]
[373233728,1752919847857,-2693.95,0.00018487,2]
[373233730,1752919847867,-224.42,0.00018488,2]
[373233732,1752919847876,-2693.95,0.00018488,2]
[373233733,1752919847886,-267.96,0.00018488,2]
[373233735,1752919847896,-1142.39,0.00018488,2]
[373233738,1752919847906,-3207.63,0.00018488,2]
[373233739,1752919847917,-1171.6658789,0.00018489,2]
[373233741,1752919847935,-1990.11,0.00018489,2]
[373233743,1752919847953,-486.9,0.00018489,2]
[373233745,1752919847974,-460.0,0.00018489,2]
[373233747,1752919847989,-1873.77,0.00018489,2]
[373233749,1752919847999,-1599.51,0.00018489,2]
[373233751,1752919848009,-919.87,0.00018489,2]
[373233753,1752919848019,-460.0,0.00018489,2]
[373233755,1752919848028,-460.0,0.00018489,2]
[373233757,1752919848038,-609.70815221,0.00018489,2]
[373233759,1752919848049,-812.34,0.00018489,2]
[373233761,1752919848060,-460.0,0.00018489,2]
[373233763,1752919848070,-460.0,0.00018489,2]
[373233765,1752919848081,-460.0,0.00018489,2]
[373233767,1752919848091,-151.0,0.00018489,2]
[373233769,1752919848101,-460.0,0.0001849,2]
[373233771,1752919848111,-460.0,0.0001849,2]
[373233773,1752919848121,-460.0,0.0001849,2]
[373233775,1752919848131,-460.0,0.0001849,2]
[373233777,1752919848141,-460.0,0.0001849,2]
[373233779,1752919848150,-460.0,0.0001849,2]
[373233781,1752919848160,-460.0,0.0001849,2]
[373233783,1752919848169,-1905.03,0.0001849,2]
[373233785,1752919848179,-460.0,0.0001849,2]
[373233787,1752919848189,-565.8,0.0001849,2]
[373233789,1752919848199,-460.0,0.0001849,2]
[373233791,1752919848209,-460.0,0.0001849,2]
[373233793,1752919848219,-710.73,0.0001849,2]
[373233795,1752919848231,-460.0,0.0001849,2]
[373233797,1752919848241,-460.0,0.0001849,2]
[373233799,1752919848251,-977.09,0.0001849,2]
[373233801,1752919848261,-747.71,0.0001849,2]
[373233803,1752919848271,-181.44,0.0001849,2]
[373233805,1752919848281,-460.0,0.0001849,2]
[373233807,1752919848291,-712.03,0.0001849,2]
[373233809,1752919848301,-460.0,0.0001849,2]
[373233811,1752919848311,-588.39750628,0.0001849,2]
[373233813,1752919848321,-552.98,0.0001849,2]
[373233815,1752919848331,-460.0,0.0001849,2]
[373233817,1752919848341,-460.0,0.00018491,2]
[373233819,1752919848350,-626.13,0.00018491,2]
[373233821,1752919848360,-460.0,0.00018493,2]
[373233823,1752919848370,-4402.60444947,0.00018728,2]
[373233825,1752919848380,-260.0,0.00018754,2]
[373233827,1752919848389,-2693.95,0.00018761,2]
[373233829,1752919848399,-2693.95,0.00018762,2]
[373233831,1752919848409,-1142.39,0.00018762,2]
[373233832,1752919848418,-3207.63,0.00018762,2]
[373233834,1752919848428,-1990.11,0.00018763,2]
[373233836,1752919848438,-486.9,0.00018763,2]
[373233838,1752919848448,-529.13,0.00018763,2]
[373233840,1752919848458,-1873.77,0.00018763,2]
[373233842,1752919848468,-1599.51,0.00018763,2]
[373233845,1752919848482,-919.87,0.00018763,2]
[373233846,1752919848492,-460.0,0.00018763,2]
[373233848,1752919848501,-812.34,0.00018763,2]
[373233850,1752919848512,-460.0,0.00018763,2]
[373233852,1752919848522,-460.0,0.00018763,2]
[373233854,1752919848532,-151.0,0.00018763,2]
[373233856,1752919848542,-460.0,0.00018763,2]
[373233858,1752919848551,-460.0,0.00018764,2]
[373233860,1752919848561,-460.0,0.00018764,2]
[373233862,1752919848571,-460.0,0.00018764,2]
[373233864,1752919848581,-207.06699781,0.00018764,2]
[373233866,1752919848591,-460.0,0.00018764,2]
[373233868,1752919848602,-1905.03,0.00018764,2]
[373233870,1752919848612,-155.54,0.00018764,2]
[373233872,1752919848622,-565.8,0.00018764,2]
[373233874,1752919848631,-460.0,0.00018764,2]
[373233876,1752919848641,-460.0,0.00018764,2]
[373233878,1752919848652,-710.73,0.00018764,2]
[373233880,1752919848661,-460.0,0.00018764,2]
[373233882,1752919848671,-460.0,0.00018764,2]
[373233885,1752919848681,-977.09,0.00018764,2]
[373233887,1752919848691,-747.71,0.00018764,2]
[373233889,1752919848702,-460.0,0.00018764,2]
[373233890,1752919848711,-712.03,0.00018764,2]
[373233893,1752919848721,-460.0,0.00018764,2]
[373233895,1752919848733,-435.15,0.00018764,2]
[373233897,1752919848743,-460.0,0.00018765,2]
[373233899,1752919848752,-626.13,0.00018765,2]
[373233901,1752919848762,-1000.0,0.0001884,2]
[373233903,1752919848772,-1000.0,0.0001884,2]
[373233904,1752919848782,-1000.0,0.0001884,2]
[373233906,1752919848792,-1000.0,0.0001884,2]
[373233908,1752919848802,-504.5581182,0.0001884,2]
[373233911,1752919848812,-1000.0,0.0001884,2]
[373233912,1752919848823,-1000.0,0.0001884,2]
[373233914,1752919848834,-1073.5549306,0.0001884,2]
[373233916,1752919848844,-4402.60444947,0.00019003,2]
[373233918,1752919848854,-151.0,0.00019004,2]
[373233920,1752919848864,-151.0,0.00019004,2]
[373233922,1752919848875,-151.0,0.00019004,2]
[373233924,1752919848885,-151.0,0.00019004,2]
[373233926,1752919848894,-151.0,0.00019004,2]
[373233928,1752919848903,-151.0,0.00019004,2]
[373233930,1752919848913,-1651.741772,0.00019004,2]
[373233932,1752919848923,-1651.741772,0.00019004,2]
[373233944,1752919848932,-151.0,0.00019004,2]
[373233946,1752919849042,-2693.95,0.00019035,2]
[373233948,1752919849052,-2693.95,0.00019036,2]
[373233950,1752919849062,-1142.39,0.00019036,2]
[373233952,1752919849071,-3207.63,0.00019036,2]
[373233954,1752919849081,-1990.11,0.00019037,2]
[373233956,1752919849090,-486.9,0.00019037,2]
[373233958,1752919849100,-1873.77,0.00019037,2]
[373233960,1752919849110,-1599.51,0.00019037,2]
[373233962,1752919849120,-919.87,0.00019037,2]
[373233964,1752919849130,-151.255532,0.00019037,2]
[373233966,1752919849140,-460.0,0.00019037,2]
[373233968,1752919849149,-812.34,0.00019037,2]
[373233970,1752919849159,-151.0,0.00019037,2]
[373233972,1752919849169,-460.0,0.00019037,2]
[373233974,1752919849178,-151.0,0.00019037,2]
[373233976,1752919849188,-531.19380089,0.00019037,2]
[373233978,1752919849197,-460.0,0.00019037,2]
[373233980,1752919849207,-258.3407,0.00019037,2]
[373233982,1752919849216,-258.3407,0.00019037,2]
[373233984,1752919849226,-460.0,0.00019038,2]
[373233986,1752919849238,-460.0,0.00019038,2]
[373233988,1752919849249,-1905.03,0.00019038,2]
[373233990,1752919849259,-565.8,0.00019038,2]
[373233992,1752919849269,-460.0,0.00019038,2]
[373233994,1752919849279,-460.0,0.00019038,2]
[373233996,1752919849289,-710.73,0.00019038,2]
[373233998,1752919849298,-460.0,0.00019038,2]
[373234000,1752919849308,-460.0,0.00019038,2]
[373234002,1752919849318,-977.09,0.00019038,2]
[373234004,1752919849328,-747.71,0.00019038,2]
[373234006,1752919849337,-460.0,0.00019038,2]
[373234009,1752919849354,-712.03,0.00019038,2]
[373234011,1752919849369,-460.0,0.00019038,2]
[373234013,1752919849380,-460.0,0.00019039,2]
[373234015,1752919849390,-626.13,0.00019039,2]
[373234017,1752919849400,-151.0,0.00019039,2]
[373234019,1752919849410,-334.553141,0.00019039,2]
[373234021,1752919849421,-334.553141,0.00019039,2]
[373234023,1752919849432,-151.0,0.00019039,2]
[373234025,1752919849443,-151.0,0.00019039,2]
[373234027,1752919849453,-207.4,0.00019042,2]
[373234029,1752919849463,-151.0,0.00019151,2]
[373234031,1752919849473,-151.0,0.00019151,2]